[Event "Titled Tuesday Blitz June 20 Early 2023"]
[White "Nithyalakshmi, Sivanesan"]
[Black "Ismayil, Malak"]
[WhiteFideId "5706955"]
[BlackFideId "13412604"]
[WhiteElo "1815"]
[BlackElo "1868"]
[Result "0-1"]
[Round "10"]
[TimeControl "180+2"]
[Date "2023.06.20"]
[WhiteClock "0:00:00"]
[BlackClock "0:00:17"]
[Board "92"]

1. e4 {[%clk 0:03:00]}  e5 {[%clk 0:02:46]} 2. Nf3 {[%clk 0:03:00]}  Nc6 {[%clk 0:02:46]} 3. d4 {[%clk 0:02:56]}  exd4 {[%clk 0:02:46]} 4. Nxd4 {[%clk 0:02:57]}  Bc5 {[%clk 0:02:46]} 5. Nb3 {[%clk 0:02:58]}  Bb6 {[%clk 0:02:46]} 6. Nc3 {[%clk 0:02:56]}  d6 {[%clk 0:02:46]} 7. Qe2 {[%clk 0:02:56]}  Nf6 {[%clk 0:02:46]} 8. Be3 {[%clk 0:02:55]}  Be6 {[%clk 0:02:45]} 9. O-O-O {[%clk 0:02:48]}  Qe7 {[%clk 0:02:40]} 10. f3 {[%clk 0:02:45]}  Ne5 {[%clk 0:02:36]} 11. Kb1 {[%clk 0:02:25]}  Nc4 {[%clk 0:02:32]} 12. Bxb6 {[%clk 0:02:23]}  axb6 {[%clk 0:02:32]} 13. g4 {[%clk 0:02:19]}  Na5 {[%clk 0:02:27]} 14. g5 {[%clk 0:02:07]}  Nd7 {[%clk 0:02:25]} 15. Nd5 {[%clk 0:02:06]}  Bxd5 {[%clk 0:02:21]} 16. Rxd5 {[%clk 0:02:03]}  Nxb3 {[%clk 0:02:20]} 17. cxb3 {[%clk 0:01:54]}  Ne5 {[%clk 0:02:19]} 18. f4 {[%clk 0:01:49]}  Nc6 {[%clk 0:02:19]} 19. a3 {[%clk 0:01:36]}  O-O-O {[%clk 0:02:17]} 20. Bg2 {[%clk 0:01:33]}  Rhe8 {[%clk 0:02:14]} 21. Rc1 {[%clk 0:01:32]}  Kb8 {[%clk 0:02:14]} 22. Qb5 {[%clk 0:01:24]}  Qd7 {[%clk 0:02:11]} 23. Rd3 {[%clk 0:00:58]}  Ne7 {[%clk 0:02:06]} 24. Qc4 {[%clk 0:00:52]}  Ng6 {[%clk 0:02:04]} 25. e5 {[%clk 0:00:50]}  Qe7 {[%clk 0:01:48]} 26. Qd5 {[%clk 0:00:42]}  c6 {[%clk 0:01:44]} 27. exd6 {[%clk 0:00:39]}  cxd5 {[%clk 0:01:40]} 28. dxe7 {[%clk 0:00:39]}  Nxe7 {[%clk 0:01:41]} 29. Bh3 {[%clk 0:00:33]}  Nc6 {[%clk 0:01:40]} 30. Rcd1 {[%clk 0:00:30]}  d4 {[%clk 0:01:40]} 31. Bg2 {[%clk 0:00:29]}  Re3 {[%clk 0:01:23]} 32. Bxc6 {[%clk 0:00:29]}  Rxd3 {[%clk 0:01:22]} 33. Rxd3 {[%clk 0:00:27]}  bxc6 {[%clk 0:01:23]} 34. Rh3 {[%clk 0:00:25]}  Rh8 {[%clk 0:01:18]} 35. Kc2 {[%clk 0:00:25]}  Kc7 {[%clk 0:01:17]} 36. Kd3 {[%clk 0:00:26]}  c5 {[%clk 0:01:18]} 37. b4 {[%clk 0:00:26]}  Kc6 {[%clk 0:01:17]} 38. Kc4 {[%clk 0:00:22]}  b5+ {[%clk 0:01:17]} 39. Kd3 {[%clk 0:00:21]}  h6 {[%clk 0:01:10]} 40. bxc5 {[%clk 0:00:21]}  Kxc5 {[%clk 0:01:09]} 41. Rg3 {[%clk 0:00:20]}  h5 {[%clk 0:01:09]} 42. f5 {[%clk 0:00:17]}  Re8 {[%clk 0:01:04]} 43. Rh3 {[%clk 0:00:13]}  Re5 {[%clk 0:01:01]} 44. Rxh5 {[%clk 0:00:11]}  Rxf5 {[%clk 0:01:01]} 45. Rh4 {[%clk 0:00:11]}  Rf3+ {[%clk 0:00:50]} 46. Ke4 {[%clk 0:00:10]}  Rb3 {[%clk 0:00:47]} 47. Rh7 {[%clk 0:00:10]}  Rxb2 {[%clk 0:00:44]} 48. Rxg7 {[%clk 0:00:10]}  Re2+ {[%clk 0:00:42]} 49. Kd3 {[%clk 0:00:10]}  Re3+ {[%clk 0:00:42]} 50. Kd2 {[%clk 0:00:10]}  Rxa3 {[%clk 0:00:41]} 51. Rxf7 {[%clk 0:00:11]}  Rh3 {[%clk 0:00:42]} 52. Rf2 {[%clk 0:00:08]}  Ra3 {[%clk 0:00:27]} 53. g6 {[%clk 0:00:06]}  Ra2+ {[%clk 0:00:27]} 54. Ke1 {[%clk 0:00:06]}  Ra1+ {[%clk 0:00:26]} 55. Ke2 {[%clk 0:00:06]}  Rg1 {[%clk 0:00:23]} 56. Rf5+ {[%clk 0:00:05]}  Kc4 {[%clk 0:00:23]} 57. Rf6 {[%clk 0:00:05]}  d3+ {[%clk 0:00:20]} 58. Kd2 {[%clk 0:00:05]}  Rg2+ {[%clk 0:00:20]} 59. Ke3 {[%clk 0:00:05]}  d2 {[%clk 0:00:17]} 60. Rf1 {[%clk 0:00:00]}  Kc3 {[%clk 0:00:17]} 0-1


[Site "https://www.chess.com"]

[Event "Titled Tuesday Blitz June 20 Early 2023"]
[White "Delorme, Axel"]
[Black "Brown, Raehanna"]
[WhiteFideId "632023"]
[BlackFideId "7402740"]
[WhiteElo "2478"]
[BlackElo "1655"]
[Result "1-0"]
[Round "10"]
[TimeControl "180+2"]
[Date "2023.06.20"]
[WhiteClock "0:00:10"]
[BlackClock "0:00:10"]
[Board "95"]

1. e4 {[%clk 0:03:00]}  c5 {[%clk 0:02:55]} 2. Nf3 {[%clk 0:03:01]}  Nc6 {[%clk 0:02:55]} 3. Bb5 {[%clk 0:03:00]}  g6 {[%clk 0:02:54]} 4. O-O {[%clk 0:02:59]}  Bg7 {[%clk 0:02:53]} 5. c3 {[%clk 0:03:00]}  e5 {[%clk 0:02:52]} 6. d4 {[%clk 0:03:01]}  cxd4 {[%clk 0:02:51]} 7. cxd4 {[%clk 0:03:02]}  exd4 {[%clk 0:02:51]} 8. Bf4 {[%clk 0:03:01]}  d6 {[%clk 0:02:46]} 9. Nxd4 {[%clk 0:02:48]}  Ne7 {[%clk 0:02:45]} 10. Nc3 {[%clk 0:02:44]}  O-O {[%clk 0:02:44]} 11. Nf3 {[%clk 0:02:41]}  Ne5 {[%clk 0:02:41]} 12. h3 {[%clk 0:02:34]}  N7c6 {[%clk 0:02:34]} 13. Rc1 {[%clk 0:02:23]}  a6 {[%clk 0:01:56]} 14. Ba4 {[%clk 0:02:03]}  Qa5 {[%clk 0:01:34]} 15. Nxe5 {[%clk 0:01:23]}  dxe5 {[%clk 0:01:28]} 16. Bd2 {[%clk 0:01:23]}  Be6 {[%clk 0:01:02]} 17. Nd5 {[%clk 0:01:22]}  Qd8 {[%clk 0:00:59]} 18. Bxc6 {[%clk 0:00:55]}  bxc6 {[%clk 0:00:57]} 19. Nc3 {[%clk 0:00:50]}  Qd6 {[%clk 0:00:42]} 20. Be3 {[%clk 0:00:49]}  Qb4 {[%clk 0:00:36]} 21. b3 {[%clk 0:00:41]}  Rfd8 {[%clk 0:00:31]} 22. Qe2 {[%clk 0:00:41]}  a5 {[%clk 0:00:26]} 23. f3 {[%clk 0:00:31]}  Bf8 {[%clk 0:00:20]} 24. Na4 {[%clk 0:00:28]}  Qb5 {[%clk 0:00:18]} 25. Rfe1 {[%clk 0:00:23]}  Rac8 {[%clk 0:00:16]} 26. Bc5 {[%clk 0:00:16]}  Bxc5+ {[%clk 0:00:15]} 27. Rxc5 {[%clk 0:00:17]}  Qxe2 {[%clk 0:00:14]} 28. Rxe2 {[%clk 0:00:18]}  f6 {[%clk 0:00:10]} 29. Kf2 {[%clk 0:00:17]}  Kf7 {[%clk 0:00:11]} 30. Rxa5 {[%clk 0:00:16]}  Rd1 {[%clk 0:00:10]} 31. Ra7+ {[%clk 0:00:15]}  Rd7 {[%clk 0:00:09]} 32. Rxd7+ {[%clk 0:00:12]}  Bxd7 {[%clk 0:00:10]} 33. Nb6 {[%clk 0:00:12]}  Rc7 {[%clk 0:00:10]} 34. Nxd7 {[%clk 0:00:11]}  Rxd7 {[%clk 0:00:10]} 35. Rc2 {[%clk 0:00:12]}  Rc7 {[%clk 0:00:11]} 36. a4 {[%clk 0:00:10]}  Rb7 {[%clk 0:00:11]} 37. Rxc6 {[%clk 0:00:07]}  Rxb3 {[%clk 0:00:11]} 38. Rc7+ {[%clk 0:00:07]}  Kg8 {[%clk 0:00:10]} 39. a5 {[%clk 0:00:08]}  Ra3 {[%clk 0:00:10]} 40. Ra7 {[%clk 0:00:08]}  h5 {[%clk 0:00:10]} 41. h4 {[%clk 0:00:07]}  Kf8 {[%clk 0:00:10]} 42. a6 {[%clk 0:00:08]}  Kg8 {[%clk 0:00:11]} 43. g4 {[%clk 0:00:07]}  Kf8 {[%clk 0:00:10]} 44. gxh5 {[%clk 0:00:07]}  gxh5 {[%clk 0:00:11]} 45. Ke2 {[%clk 0:00:06]}  Kg8 {[%clk 0:00:11]} 46. Kd2 {[%clk 0:00:06]}  Kf8 {[%clk 0:00:11]} 47. Kc2 {[%clk 0:00:06]}  Kg8 {[%clk 0:00:07]} 48. Kb2 {[%clk 0:00:06]}  Ra5 {[%clk 0:00:07]} 49. Kb3 {[%clk 0:00:06]}  Kf8 {[%clk 0:00:08]} 50. Kb4 {[%clk 0:00:07]}  Ra1 {[%clk 0:00:08]} 51. Kc5 {[%clk 0:00:07]}  Ra3 {[%clk 0:00:07]} 52. Kd6 {[%clk 0:00:06]}  Kg8 {[%clk 0:00:06]} 53. Ke6 {[%clk 0:00:06]}  Rxf3 {[%clk 0:00:05]} 54. Rb7 {[%clk 0:00:06]}  Ra3 {[%clk 0:00:04]} 55. a7 {[%clk 0:00:06]}  Kf8 {[%clk 0:00:04]} 56. Rb8+ {[%clk 0:00:06]}  Kg7 {[%clk 0:00:05]} 57. a8=Q {[%clk 0:00:07]}  Rxa8 {[%clk 0:00:04]} 58. Rxa8 {[%clk 0:00:08]}  Kg6 {[%clk 0:00:05]} 59. Rf8 {[%clk 0:00:07]}  Kh6 {[%clk 0:00:06]} 60. Rxf6+ {[%clk 0:00:07]}  Kg7 {[%clk 0:00:06]} 61. Kxe5 {[%clk 0:00:06]}  Kh8 {[%clk 0:00:07]} 62. Kf5 {[%clk 0:00:07]}  Kg7 {[%clk 0:00:07]} 63. e5 {[%clk 0:00:08]}  Kh8 {[%clk 0:00:08]} 64. e6 {[%clk 0:00:08]}  Kg7 {[%clk 0:00:08]} 65. e7 {[%clk 0:00:09]}  Kh8 {[%clk 0:00:09]} 66. e8=Q+ {[%clk 0:00:09]}  Kg7 {[%clk 0:00:09]} 67. Qe7+ {[%clk 0:00:09]}  Kg8 {[%clk 0:00:10]} 68. Rf8# {[%clk 0:00:10]} 1-0


[Site "https://www.chess.com"]

[Event "Titled Tuesday Blitz June 20 Early 2023"]
[White "Wang, Alexander J"]
[Black "Oro, Faustino"]
[WhiteFideId "30955270"]
[BlackFideId "20000197"]
[WhiteElo "2318"]
[BlackElo "1984"]
[Result "0-1"]
[Round "10"]
[TimeControl "180+2"]
[Date "2023.06.20"]
[WhiteClock "0:00:06"]
[BlackClock "0:00:12"]
[Board "96"]

1. e4 {[%clk 0:03:00]}  c5 {[%clk 0:02:58]} 2. Nf3 {[%clk 0:03:00]}  d6 {[%clk 0:02:58]} 3. d4 {[%clk 0:03:00]}  cxd4 {[%clk 0:02:59]} 4. Nxd4 {[%clk 0:03:00]}  Nf6 {[%clk 0:03:00]} 5. Nc3 {[%clk 0:03:01]}  a6 {[%clk 0:03:00]} 6. g3 {[%clk 0:03:01]}  e5 {[%clk 0:03:00]} 7. Nde2 {[%clk 0:03:01]}  Be7 {[%clk 0:03:00]} 8. Bg2 {[%clk 0:03:01]}  Be6 {[%clk 0:03:01]} 9. O-O {[%clk 0:03:01]}  O-O {[%clk 0:03:02]} 10. h3 {[%clk 0:02:59]}  Nbd7 {[%clk 0:03:02]} 11. Be3 {[%clk 0:02:54]}  b5 {[%clk 0:03:01]} 12. a3 {[%clk 0:02:53]}  Nb6 {[%clk 0:03:01]} 13. b3 {[%clk 0:02:52]}  Rc8 {[%clk 0:03:01]} 14. f4 {[%clk 0:02:47]}  exf4 {[%clk 0:02:39]} 15. gxf4 {[%clk 0:02:41]}  Qc7 {[%clk 0:02:37]} 16. Qe1 {[%clk 0:02:31]}  Rfd8 {[%clk 0:02:32]} 17. Qf2 {[%clk 0:02:31]}  Na8 {[%clk 0:02:22]} 18. Rad1 {[%clk 0:02:27]}  Qa5 {[%clk 0:02:13]} 19. e5 {[%clk 0:02:17]}  dxe5 {[%clk 0:02:10]} 20. fxe5 {[%clk 0:02:17]}  Ne8 {[%clk 0:02:10]} 21. Bd5 {[%clk 0:02:07]}  Rxd5 {[%clk 0:01:33]} 22. Nxd5 {[%clk 0:01:59]}  Bxa3 {[%clk 0:01:33]} 23. Nef4 {[%clk 0:01:52]}  Bf5 {[%clk 0:01:23]} 24. Nd3 {[%clk 0:01:33]}  Bg6 {[%clk 0:01:20]} 25. Ra1 {[%clk 0:01:16]}  Qd8 {[%clk 0:01:17]} 26. N5f4 {[%clk 0:01:11]}  Qe7 {[%clk 0:00:52]} 27. Nxg6 {[%clk 0:01:06]}  hxg6 {[%clk 0:00:52]} 28. Rxa3 {[%clk 0:00:56]}  Qxa3 {[%clk 0:00:53]} 29. Qxf7+ {[%clk 0:00:56]}  Kh7 {[%clk 0:00:53]} 30. Rf4 {[%clk 0:00:49]}  g5 {[%clk 0:00:47]} 31. Qh5+ {[%clk 0:00:40]}  Kg8 {[%clk 0:00:47]} 32. Qf7+ {[%clk 0:00:40]}  Kh7 {[%clk 0:00:48]} 33. Rf5 {[%clk 0:00:40]}  Qa1+ {[%clk 0:00:44]} 34. Rf1 {[%clk 0:00:36]}  Qc3 {[%clk 0:00:42]} 35. Qh5+ {[%clk 0:00:35]}  Kg8 {[%clk 0:00:42]} 36. Qf7+ {[%clk 0:00:36]}  Kh7 {[%clk 0:00:42]} 37. Qf5+ {[%clk 0:00:34]}  Kg8 {[%clk 0:00:42]} 38. Bxg5 {[%clk 0:00:26]}  Qd4+ {[%clk 0:00:40]} 39. Kh1 {[%clk 0:00:23]}  Rxc2 {[%clk 0:00:36]} 40. Qf7+ {[%clk 0:00:21]}  Kh7 {[%clk 0:00:36]} 41. Qh5+ {[%clk 0:00:20]}  Kg8 {[%clk 0:00:33]} 42. Qxe8+ {[%clk 0:00:21]}  Kh7 {[%clk 0:00:34]} 43. Qh5+ {[%clk 0:00:20]}  Kg8 {[%clk 0:00:34]} 44. Be7 {[%clk 0:00:16]}  Qe4+ {[%clk 0:00:32]} 45. Qf3 {[%clk 0:00:16]}  Qxf3+ {[%clk 0:00:22]} 46. Rxf3 {[%clk 0:00:17]}  Nc7 {[%clk 0:00:22]} 47. Bd6 {[%clk 0:00:15]}  Ne6 {[%clk 0:00:21]} 48. Nf4 {[%clk 0:00:14]}  Nd4 {[%clk 0:00:22]} 49. Rd3 {[%clk 0:00:13]}  Nf5 {[%clk 0:00:23]} 50. e6 {[%clk 0:00:11]}  Rc1+ {[%clk 0:00:23]} 51. Kg2 {[%clk 0:00:11]}  Re1 {[%clk 0:00:23]} 52. Kf2 {[%clk 0:00:08]}  Re4 {[%clk 0:00:23]} 53. Rd5 {[%clk 0:00:08]}  Nd4 {[%clk 0:00:16]} 54. e7 {[%clk 0:00:06]}  Kf7 {[%clk 0:00:16]} 55. Bc5 {[%clk 0:00:04]}  Nc6 {[%clk 0:00:16]} 56. Rd8 {[%clk 0:00:04]}  Nxe7 {[%clk 0:00:16]} 57. Rd7 {[%clk 0:00:04]}  Rxf4+ {[%clk 0:00:16]} 58. Ke3 {[%clk 0:00:04]}  Rh4 {[%clk 0:00:13]} 59. Rxe7+ {[%clk 0:00:05]}  Kg8 {[%clk 0:00:14]} 60. Kf2 {[%clk 0:00:04]}  Rxh3 {[%clk 0:00:14]} 61. Be3 {[%clk 0:00:04]}  Rh2+ {[%clk 0:00:14]} 62. Kf3 {[%clk 0:00:04]}  Rb2 {[%clk 0:00:14]} 63. Ra7 {[%clk 0:00:05]}  Rxb3 {[%clk 0:00:11]} 64. Rxa6 {[%clk 0:00:05]}  Kf7 {[%clk 0:00:11]} 65. Rb6 {[%clk 0:00:06]}  g6 {[%clk 0:00:10]} 66. Ke2 {[%clk 0:00:06]}  Kg7 {[%clk 0:00:10]} 67. Bd4+ {[%clk 0:00:06]}  Kh6 {[%clk 0:00:10]} 68. Rb8 {[%clk 0:00:06]}  Kg5 {[%clk 0:00:09]} 69. Kd2 {[%clk 0:00:06]}  Kg4 {[%clk 0:00:10]} 70. Kc2 {[%clk 0:00:07]}  Rb4 {[%clk 0:00:10]} 71. Bc3 {[%clk 0:00:07]}  Rc4 {[%clk 0:00:08]} 72. Rxb5 {[%clk 0:00:07]}  Kh4 {[%clk 0:00:06]} 73. Kd3 {[%clk 0:00:08]}  Rf4 {[%clk 0:00:06]} 74. Bd2 {[%clk 0:00:08]}  Rf3+ {[%clk 0:00:06]} 75. Ke2 {[%clk 0:00:08]}  Rf5 {[%clk 0:00:06]} 76. Rb8 {[%clk 0:00:07]}  g5 {[%clk 0:00:06]} 77. Be3 {[%clk 0:00:07]}  Kg4 {[%clk 0:00:06]} 78. Rb4+ {[%clk 0:00:06]}  Kh5 {[%clk 0:00:06]} 79. Rb8 {[%clk 0:00:06]}  Ra5 {[%clk 0:00:06]} 80. Rh8+ {[%clk 0:00:05]}  Kg4 {[%clk 0:00:07]} 81. Rg8 {[%clk 0:00:06]}  Ra2+ {[%clk 0:00:07]} 82. Kd3 {[%clk 0:00:05]}  Ra5 {[%clk 0:00:08]} 83. Ke4 {[%clk 0:00:05]}  Kh4 {[%clk 0:00:07]} 84. Rh8+ {[%clk 0:00:05]}  Kg3 {[%clk 0:00:07]} 85. Rg8 {[%clk 0:00:06]}  g4 {[%clk 0:00:07]} 86. Bf4+ {[%clk 0:00:05]}  Kh3 {[%clk 0:00:08]} 87. Rh8+ {[%clk 0:00:05]}  Kg2 {[%clk 0:00:08]} 88. Rg8 {[%clk 0:00:05]}  Kh3 {[%clk 0:00:08]} 89. Ke3 {[%clk 0:00:05]}  Ra3+ {[%clk 0:00:08]} 90. Kf2 {[%clk 0:00:05]}  Rf3+ {[%clk 0:00:09]} 91. Kg1 {[%clk 0:00:05]}  Rxf4 {[%clk 0:00:10]} 92. Rh8+ {[%clk 0:00:04]}  Kg3 {[%clk 0:00:10]} 93. Ra8 {[%clk 0:00:05]}  Rf3 {[%clk 0:00:08]} 94. Ra4 {[%clk 0:00:03]}  Rb3 {[%clk 0:00:07]} 95. Kf1 {[%clk 0:00:03]}  Rb1+ {[%clk 0:00:07]} 96. Ke2 {[%clk 0:00:03]}  Kh3 {[%clk 0:00:08]} 97. Ra8 {[%clk 0:00:02]}  g3 {[%clk 0:00:07]} 98. Rh8+ {[%clk 0:00:02]}  Kg2 {[%clk 0:00:08]} 99. Rg8 {[%clk 0:00:03]}  Kh2 {[%clk 0:00:08]} 100. Rh8+ {[%clk 0:00:03]}  Kg1 {[%clk 0:00:09]} 101. Rg8 {[%clk 0:00:02]}  g2 {[%clk 0:00:09]} 102. Kf3 {[%clk 0:00:03]}  Rb3+ {[%clk 0:00:09]} 103. Ke2 {[%clk 0:00:03]}  Rh3 {[%clk 0:00:09]} 104. Ra8 {[%clk 0:00:01]}  Kh1 {[%clk 0:00:08]} 105. Ra1+ {[%clk 0:00:01]}  g1=Q {[%clk 0:00:09]} 106. Rxg1+ {[%clk 0:00:02]}  Kxg1 {[%clk 0:00:09]} 107. Kd2 {[%clk 0:00:02]}  Kf2 {[%clk 0:00:10]} 108. Kc2 {[%clk 0:00:02]}  Ke2 {[%clk 0:00:10]} 109. Kb2 {[%clk 0:00:03]}  Rd3 {[%clk 0:00:10]} 110. Kb1 {[%clk 0:00:04]}  Rc3 {[%clk 0:00:10]} 111. Kb2 {[%clk 0:00:04]}  Kd2 {[%clk 0:00:11]} 112. Kb1 {[%clk 0:00:05]}  Rb3+ {[%clk 0:00:11]} 113. Ka2 {[%clk 0:00:05]}  Kc2 {[%clk 0:00:11]} 114. Ka1 {[%clk 0:00:06]}  Ra3# {[%clk 0:00:12]} 0-1


[Site "https://www.chess.com"]

[Event "Titled Tuesday Blitz June 20 Early 2023"]
[White "Zavgorodniy, Sergiy"]
[Black "Vega Gutierrez, Sabrina"]
[WhiteFideId "14110148"]
[BlackFideId "2219026"]
[WhiteElo "2402"]
[BlackElo "2209"]
[Result "1-0"]
[Round "10"]
[TimeControl "180+2"]
[Date "2023.06.20"]
[WhiteClock "0:02:08"]
[BlackClock "0:00:08"]
[Board "97"]

1. d4 {[%clk 0:03:00]}  d5 {[%clk 0:02:56]} 2. c4 {[%clk 0:03:00]}  e6 {[%clk 0:02:56]} 3. Nf3 {[%clk 0:03:00]}  Nf6 {[%clk 0:02:56]} 4. e3 {[%clk 0:03:00]}  c6 {[%clk 0:02:53]} 5. Nbd2 {[%clk 0:02:59]}  c5 {[%clk 0:02:45]} 6. dxc5 {[%clk 0:02:58]}  Bxc5 {[%clk 0:02:44]} 7. a3 {[%clk 0:02:58]}  Nc6 {[%clk 0:02:26]} 8. b4 {[%clk 0:02:58]}  Be7 {[%clk 0:02:27]} 9. Bb2 {[%clk 0:02:58]}  O-O {[%clk 0:02:26]} 10. Be2 {[%clk 0:02:57]}  dxc4 {[%clk 0:02:21]} 11. Bxc4 {[%clk 0:02:57]}  Bd7 {[%clk 0:02:08]} 12. O-O {[%clk 0:02:56]}  Rc8 {[%clk 0:02:08]} 13. Rc1 {[%clk 0:02:56]}  Rc7 {[%clk 0:01:33]} 14. Qb3 {[%clk 0:02:55]}  Qa8 {[%clk 0:01:00]} 15. Rfd1 {[%clk 0:02:55]}  Rfc8 {[%clk 0:01:00]} 16. Ng5 {[%clk 0:02:54]}  h6 {[%clk 0:00:55]} 17. Nge4 {[%clk 0:02:54]}  Nxe4 {[%clk 0:00:43]} 18. Nxe4 {[%clk 0:02:55]}  Be8 {[%clk 0:00:32]} 19. Qc3 {[%clk 0:02:45]}  Bf8 {[%clk 0:00:24]} 20. Nd6 {[%clk 0:02:37]}  Rd8 {[%clk 0:00:21]} 21. Nxe8 {[%clk 0:02:32]}  Rxe8 {[%clk 0:00:21]} 22. b5 {[%clk 0:02:20]}  Ne7 {[%clk 0:00:16]} 23. Qe5 {[%clk 0:02:20]}  Qc8 {[%clk 0:00:14]} 24. Bb3 {[%clk 0:02:09]}  Ng6 {[%clk 0:00:08]} 25. Qxc7 {[%clk 0:02:08]} 1-0


[Site "https://www.chess.com"]

[Event "Titled Tuesday Blitz June 20 Early 2023"]
[White "Slavin, Alexey"]
[Black "Ilkhomi, Jaloliddin"]
[WhiteFideId "24104388"]
[BlackFideId "14700948"]
[WhiteElo "2264"]
[BlackElo "2045"]
[Result "1-0"]
[Round "10"]
[TimeControl "180+2"]
[Date "2023.06.20"]
[WhiteClock "0:00:45"]
[BlackClock "0:00:28"]
[Board "98"]

1. e4 {[%clk 0:02:57]}  e6 {[%clk 0:03:00]} 2. Nf3 {[%clk 0:02:56]}  d5 {[%clk 0:03:00]} 3. e5 {[%clk 0:02:56]}  c5 {[%clk 0:02:57]} 4. b4 {[%clk 0:02:56]}  cxb4 {[%clk 0:02:57]} 5. a3 {[%clk 0:02:56]}  bxa3 {[%clk 0:02:58]} 6. d4 {[%clk 0:02:56]}  Nc6 {[%clk 0:02:57]} 7. c3 {[%clk 0:02:56]}  Nh6 {[%clk 0:02:56]} 8. Bd3 {[%clk 0:02:54]}  Nf5 {[%clk 0:02:55]} 9. Nxa3 {[%clk 0:02:54]}  Be7 {[%clk 0:02:54]} 10. Nc2 {[%clk 0:02:52]}  O-O {[%clk 0:02:53]} 11. O-O {[%clk 0:02:52]}  a5 {[%clk 0:02:48]} 12. Ne3 {[%clk 0:02:50]}  Nxe3 {[%clk 0:02:47]} 13. Bxe3 {[%clk 0:02:50]}  a4 {[%clk 0:02:47]} 14. Rxa4 {[%clk 0:02:48]}  Rxa4 {[%clk 0:02:46]} 15. Qxa4 {[%clk 0:02:48]}  Bd7 {[%clk 0:02:47]} 16. Qc2 {[%clk 0:02:40]}  g6 {[%clk 0:02:47]} 17. Bh6 {[%clk 0:02:37]}  Re8 {[%clk 0:02:47]} 18. Rb1 {[%clk 0:02:37]}  Qc7 {[%clk 0:02:43]} 19. Qe2 {[%clk 0:02:01]}  Na5 {[%clk 0:02:38]} 20. Rc1 {[%clk 0:01:43]}  Ba3 {[%clk 0:02:36]} 21. Rc2 {[%clk 0:01:37]}  Be7 {[%clk 0:02:12]} 22. h4 {[%clk 0:01:35]}  Nc4 {[%clk 0:02:09]} 23. Bg5 {[%clk 0:01:25]}  Qd8 {[%clk 0:02:06]} 24. Bxe7 {[%clk 0:01:19]}  Qxe7 {[%clk 0:02:07]} 25. h5 {[%clk 0:01:18]}  Rc8 {[%clk 0:02:01]} 26. hxg6 {[%clk 0:01:11]}  hxg6 {[%clk 0:02:02]} 27. g3 {[%clk 0:01:11]}  b5 {[%clk 0:02:02]} 28. Kg2 {[%clk 0:01:11]}  Na3 {[%clk 0:02:00]} 29. Ra2 {[%clk 0:01:07]}  Rxc3 {[%clk 0:01:57]} 30. Qb2 {[%clk 0:01:04]}  Rxd3 {[%clk 0:01:54]} 31. Ra1 {[%clk 0:00:59]}  b4 {[%clk 0:01:47]} 32. Rh1 {[%clk 0:00:59]}  Nc4 {[%clk 0:01:43]} 33. Qc1 {[%clk 0:00:58]}  Rxf3 {[%clk 0:01:42]} 34. Qh6 {[%clk 0:00:49]}  Ne3+ {[%clk 0:00:28]} 35. fxe3 {[%clk 0:00:45]} 1-0


[Site "https://www.chess.com"]

[Event "Titled Tuesday Blitz June 20 Early 2023"]
[White "whiteglovethief"]
[Black "Mazurkiewicz, Michal"]
[BlackFideId "1124943"]
[WhiteElo "2511"]
[BlackElo "2063"]
[Result "0-1"]
[Round "10"]
[TimeControl "180+2"]
[Date "2023.06.20"]
[WhiteClock "0:00:56"]
[BlackClock "0:00:25"]
[Board "104"]

1. d4 {[%clk 0:03:00]}  Nf6 {[%clk 0:02:59]} 2. c4 {[%clk 0:02:59]}  e5 {[%clk 0:02:59]} 3. dxe5 {[%clk 0:02:59]}  Ng4 {[%clk 0:03:00]} 4. e3 {[%clk 0:03:00]}  Nxe5 {[%clk 0:03:00]} 5. Nh3 {[%clk 0:03:01]}  d5 {[%clk 0:03:00]} 6. Qxd5 {[%clk 0:02:55]}  Qe7 {[%clk 0:03:00]} 7. Nf4 {[%clk 0:02:53]}  c6 {[%clk 0:02:58]} 8. Qd1 {[%clk 0:02:53]}  Bf5 {[%clk 0:02:58]} 9. Be2 {[%clk 0:02:52]}  Nbd7 {[%clk 0:02:58]} 10. O-O {[%clk 0:02:51]}  O-O-O {[%clk 0:02:58]} 11. Nc3 {[%clk 0:02:51]}  Nc5 {[%clk 0:02:56]} 12. Qe1 {[%clk 0:02:48]}  g5 {[%clk 0:02:56]} 13. Nh5 {[%clk 0:02:46]}  Ned3 {[%clk 0:02:47]} 14. Qd2 {[%clk 0:02:32]}  Nb4 {[%clk 0:02:44]} 15. Nd5 {[%clk 0:02:27]}  Nxd5 {[%clk 0:02:25]} 16. cxd5 {[%clk 0:02:26]}  Rxd5 {[%clk 0:02:24]} 17. Qc3 {[%clk 0:02:07]}  Qe5 {[%clk 0:02:06]} 18. Qxe5 {[%clk 0:01:59]}  Rxe5 {[%clk 0:02:07]} 19. b4 {[%clk 0:01:59]}  Na4 {[%clk 0:01:59]} 20. Bd1 {[%clk 0:01:59]}  Nc3 {[%clk 0:01:59]} 21. Bb2 {[%clk 0:01:58]}  Bxb4 {[%clk 0:01:58]} 22. Rc1 {[%clk 0:01:58]}  Rc5 {[%clk 0:01:51]} 23. Ng3 {[%clk 0:01:46]}  Bg6 {[%clk 0:01:51]} 24. Bxc3 {[%clk 0:01:42]}  Rxc3 {[%clk 0:01:46]} 25. Bg4+ {[%clk 0:01:40]}  Kc7 {[%clk 0:01:43]} 26. Rcd1 {[%clk 0:01:41]}  Rd8 {[%clk 0:01:38]} 27. Rxd8 {[%clk 0:01:42]}  Kxd8 {[%clk 0:01:38]} 28. e4 {[%clk 0:01:41]}  Rc2 {[%clk 0:01:30]} 29. Rb1 {[%clk 0:01:37]}  a5 {[%clk 0:01:16]} 30. Nf1 {[%clk 0:01:35]}  Bxe4 {[%clk 0:01:09]} 31. Rd1+ {[%clk 0:01:36]}  Ke8 {[%clk 0:00:58]} 32. Ne3 {[%clk 0:01:35]}  Rxa2 {[%clk 0:00:53]} 33. h4 {[%clk 0:01:31]}  gxh4 {[%clk 0:00:34]} 34. Rd7 {[%clk 0:01:31]}  f5 {[%clk 0:00:34]} 35. Rd4 {[%clk 0:01:19]}  Bc5 {[%clk 0:00:24]} 36. Bh5+ {[%clk 0:01:19]}  Ke7 {[%clk 0:00:25]} 37. Rd1 {[%clk 0:01:10]}  Bxe3 {[%clk 0:00:25]} 38. fxe3 {[%clk 0:01:10]}  Rxg2+ {[%clk 0:00:25]} 39. Kf1 {[%clk 0:00:56]}  h3 {[%clk 0:00:25]} 0-1


[Site "https://www.chess.com"]

[Event "Titled Tuesday Blitz June 20 Early 2023"]
[White "Reprintsev, Alexander"]
[Black "Ovezdurdyyeva, Jemal"]
[WhiteFideId "14100541"]
[BlackFideId "14001888"]
[WhiteElo "2229"]
[BlackElo "2069"]
[Result "0-1"]
[Round "10"]
[TimeControl "180+2"]
[Date "2023.06.20"]
[WhiteClock "0:01:46"]
[BlackClock "0:02:53"]
[Board "106"]

1. e4 {[%clk 0:03:00]}  d6 {[%clk 0:02:57]} 2. d4 {[%clk 0:02:51]}  Nf6 {[%clk 0:02:58]} 3. Nc3 {[%clk 0:02:50]}  g6 {[%clk 0:02:57]} 4. h4 {[%clk 0:02:50]}  h5 {[%clk 0:02:56]} 5. Nf3 {[%clk 0:02:50]}  c6 {[%clk 0:02:56]} 6. Ng5 {[%clk 0:02:42]}  Bg7 {[%clk 0:02:56]} 7. f3 {[%clk 0:02:35]}  b5 {[%clk 0:02:54]} 8. a3 {[%clk 0:02:32]}  a5 {[%clk 0:02:53]} 9. Be3 {[%clk 0:02:19]}  Bb7 {[%clk 0:02:53]} 10. Qd2 {[%clk 0:01:57]}  b4 {[%clk 0:02:52]} 11. axb4 {[%clk 0:01:57]}  axb4 {[%clk 0:02:53]} 12. Rxa8 {[%clk 0:01:46]}  bxc3 {[%clk 0:02:53]} 0-1


[Site "https://www.chess.com"]